[Event "Biel DQA Blitzn"]
[Site "Biel/Bienne, Switzerland"]
[Date "2022.07.17"]
[Round "1.1"]
[White "Zhuang, Yongzhe"]
[Black "Cornileau, Juliette"]
[Result "1-0"]
[TimeControl "3 min + 2 sec"]
[WhiteElo "1681"]
[BlackElo "1653"]

1. e4 {[%clk 00:03:01]} {[%emt 00:00:02]} c6 {[%clk 00:03:04]} {[%emt
00:00:01]} 2. c4 {[%clk 00:03:02]} {[%emt 00:00:02]} d5 {[%clk 00:03:05]} 3.
exd5 {[%clk 00:03:02]} {[%emt 00:00:02]} cxd5 {[%clk 00:03:06]} {[%emt
00:00:01]} 4. cxd5 {[%clk 00:03:02]} {[%emt 00:00:01]} Nf6 {[%clk 00:03:05]}
{[%emt 00:00:03]} 5. Nc3 {[%clk 00:03:02]} {[%emt 00:00:01]} Nxd5 {[%clk
00:03:04]} {[%emt 00:00:03]} 6. Nf3 {[%clk 00:03:03]} {[%emt 00:00:01]} Nc6
{[%clk 00:03:00]} {[%emt 00:00:07]} 7. Bb5 {[%clk 00:03:03]} {[%emt 00:00:02]}
Bg4 {[%clk 00:02:48]} {[%emt 00:00:13]} 8. Qa4 {[%clk 00:02:43]} {[%emt
00:00:23]} Ndb4 {[%clk 00:02:05]} {[%emt 00:00:45]} 9. Bxc6+ {[%clk 00:02:37]}
{[%emt 00:00:08]} bxc6 {[%clk 00:01:30]} {[%emt 00:00:37]} 10. Qxb4 {[%clk
00:02:38]} {[%emt 00:00:02]} Bxf3 11. gxf3 {[%clk 00:02:39]} e5 {[%clk
00:01:30]} {[%emt 00:00:02]} 12. Qe4 {[%clk 00:02:33]} {[%emt 00:00:06]} Qf6
{[%clk 00:01:25]} {[%emt 00:00:08]} 13. d4 {[%clk 00:02:23]} {[%emt 00:00:12]}
Bd6 {[%clk 00:01:15]} {[%emt 00:00:12]} 14. Qxc6+ {[%clk 00:02:18]} {[%emt
00:00:08]} 1-0

[Event "Biel DQA Blitzn"]
[Site "Biel/Bienne, Switzerland"]
[Date "2022.07.17"]
[Round "1.2"]
[White "Avilova, Yulia"]
[Black "Tamrazyan, Gohar"]
[Result "0-1"]
[TimeControl "3 min + 2 sec"]
[WhiteElo "1597"]
[BlackElo "1733"]

1. Nf3 {[%clk 00:03:03]} d5 {[%clk 00:03:04]} {[%emt 00:00:01]} 2. c4 {[%clk
00:03:04]} {[%emt 00:00:01]} e6 {[%clk 00:03:05]} 3. e3 {[%clk 00:03:05]} c5
{[%clk 00:03:06]} {[%emt 00:00:01]} 4. cxd5 {[%clk 00:03:05]} {[%emt 00:00:02]}
exd5 {[%clk 00:03:07]} {[%emt 00:00:01]} 5. d4 {[%clk 00:03:06]} Nc6 {[%clk
00:03:08]} {[%emt 00:00:01]} 6. Nc3 {[%clk 00:03:07]} {[%emt 00:00:01]} Nf6
{[%clk 00:03:09]} {[%emt 00:00:01]} 7. Be2 {[%clk 00:03:08]} Be7 {[%clk
00:03:02]} {[%emt 00:00:09]} 8. O-O {[%clk 00:03:09]} {[%emt 00:00:01]} O-O
{[%clk 00:03:02]} {[%emt 00:00:01]} 9. b3 {[%clk 00:03:08]} {[%emt 00:00:03]}
Bg4 {[%clk 00:02:32]} {[%emt 00:00:32]} 10. Bb2 {[%clk 00:03:04]} {[%emt
00:00:07]} cxd4 {[%clk 00:02:13]} {[%emt 00:00:21]} 11. Nxd4 {[%clk 00:02:59]}
{[%emt 00:00:06]} Bxe2 {[%clk 00:02:13]} {[%emt 00:00:02]} 12. Ndxe2 {[%clk
00:02:59]} {[%emt 00:00:02]} Rc8 {[%clk 00:02:12]} {[%emt 00:00:03]} 13. Qd2
{[%clk 00:02:54]} {[%emt 00:00:07]} Bb4 {[%clk 00:02:04]} {[%emt 00:00:10]} 14.
a3 {[%clk 00:02:47]} {[%emt 00:00:09]} Ne4 {[%clk 00:01:45]} {[%emt 00:00:21]}
15. Qc2 {[%clk 00:02:46]} {[%emt 00:00:03]} Bxc3 {[%clk 00:01:46]} {[%emt
00:00:02]} 16. Nxc3 {[%clk 00:02:45]} {[%emt 00:00:03]} Nf6 {[%clk 00:01:42]}
{[%emt 00:00:05]} 17. Rfd1 {[%clk 00:02:45]} {[%emt 00:00:02]} Qd7 {[%clk
00:01:32]} {[%emt 00:00:13]} 18. Rd2 {[%clk 00:02:39]} {[%emt 00:00:07]} Qe6
{[%clk 00:01:29]} {[%emt 00:00:05]} 19. Rad1 {[%clk 00:02:38]} {[%emt
00:00:03]} Rfd8 {[%clk 00:01:30]} 20. Ba1 {[%clk 00:02:29]} {[%emt 00:00:11]}
Ne7 {[%clk 00:01:30]} {[%emt 00:00:03]} 21. Qb2 {[%clk 00:02:29]} {[%emt
00:00:02]} a6 {[%clk 00:01:23]} {[%emt 00:00:09]} 22. e4 {[%clk 00:02:10]}
{[%emt 00:00:21]} d4 {[%clk 00:01:20]} {[%emt 00:00:05]} 23. Rxd4 {[%clk
00:02:06]} {[%emt 00:00:07]} Rxd4 {[%clk 00:01:19]} {[%emt 00:00:03]} 24. Rxd4
{[%clk 00:02:06]} {[%emt 00:00:01]} Nc6 {[%clk 00:01:19]} {[%emt 00:00:02]} 25.
Rd1 {[%clk 00:02:01]} {[%emt 00:00:06]} Qg4 {[%clk 00:01:13]} {[%emt 00:00:08]}
26. f3 {[%clk 00:01:58]} {[%emt 00:00:05]} Qg5 {[%clk 00:01:10]} {[%emt
00:00:05]} 27. Nd5 {[%clk 00:01:56]} {[%emt 00:00:04]} Nxd5 {[%clk 00:01:02]}
{[%emt 00:00:10]} 28. Rxd5 {[%clk 00:01:57]} {[%emt 00:00:01]} Ne5 {[%clk
00:00:28]} {[%emt 00:00:37]} 29. Rxe5 {[%clk 00:01:32]} {[%emt 00:00:26]} Qe3+
{[%clk 00:00:29]} {[%emt 00:00:01]} 30. Kf1 {[%clk 00:01:24]} {[%emt 00:00:10]}
Rc1+ {[%clk 00:00:30]} 31. Qxc1 {[%clk 00:01:24]} {[%emt 00:00:03]} Qxc1+
{[%clk 00:00:31]} {[%emt 00:00:01]} 32. Ke2 {[%clk 00:01:23]} {[%emt 00:00:03]}
Qc2+ {[%clk 00:00:24]} {[%emt 00:00:09]} 33. Ke3 {[%clk 00:01:17]} {[%emt
00:00:08]} Qxb3+ {[%clk 00:00:22]} {[%emt 00:00:04]} 34. Kf4 {[%clk 00:01:09]}
{[%emt 00:00:10]} f6 {[%clk 00:00:21]} {[%emt 00:00:04]} 35. Re7 {[%clk
00:01:00]} {[%emt 00:00:11]} Qxa3 {[%clk 00:00:19]} {[%emt 00:00:04]} 36. Rxb7
{[%clk 00:00:52]} {[%emt 00:00:10]} Qxa1 {[%clk 00:00:21]} 37. Rb8+ {[%clk
00:00:52]} {[%emt 00:00:01]} Kf7 {[%clk 00:00:22]} {[%emt 00:00:01]} 38. h4
{[%emt 00:00:02]} Qe5+ 0-1

[Event "Biel DQA Blitzn"]
[Site "Biel/Bienne, Switzerland"]
[Date "2022.07.17"]
[Round "1.3"]
[White "Keymer, Cecilia"]
[Black "Ciarletta, Iris"]
[Result "0-1"]
[TimeControl "3 min + 2 sec"]
[WhiteElo "1652"]
[BlackElo "1481"]

1. d4 {[%clk 00:03:03]} {[%emt 00:00:01]} Nf6 {[%clk 00:03:03]} {[%emt
00:00:01]} 2. c4 {[%clk 00:03:04]} c5 {[%clk 00:03:04]} 3. d5 {[%clk 00:03:04]}
{[%emt 00:00:01]} b5 {[%clk 00:03:05]} {[%emt 00:00:02]} 4. cxb5 {[%clk
00:03:05]} {[%emt 00:00:02]} a6 {[%clk 00:03:06]} 5. bxa6 {[%clk 00:03:06]}
{[%emt 00:00:01]} Bxa6 {[%clk 00:03:06]} {[%emt 00:00:01]} 6. Nc3 {[%clk
00:03:06]} {[%emt 00:00:02]} d6 {[%clk 00:03:05]} {[%emt 00:00:03]} 7. e4
{[%clk 00:03:05]} {[%emt 00:00:03]} Bxf1 {[%clk 00:03:04]} 8. Kxf1 {[%clk
00:03:06]} g6 {[%clk 00:03:04]} {[%emt 00:00:03]} 9. g3 {[%clk 00:03:07]}
{[%emt 00:00:01]} Bg7 {[%clk 00:03:03]} {[%emt 00:00:02]} 10. Nf3 {[%clk
00:03:07]} {[%emt 00:00:02]} O-O {[%clk 00:03:01]} {[%emt 00:00:04]} 11. Kg2
{[%clk 00:03:08]} {[%emt 00:00:01]} Nbd7 {[%clk 00:02:59]} {[%emt 00:00:04]} 12.
a4 {[%clk 00:03:07]} {[%emt 00:00:03]} Qb6 {[%clk 00:02:48]} {[%emt 00:00:12]}
13. Qc2 {[%clk 00:03:06]} {[%emt 00:00:03]} Rfb8 {[%clk 00:02:44]} {[%emt
00:00:06]} 14. Nb5 {[%clk 00:03:06]} {[%emt 00:00:03]} Qb7 {[%clk 00:02:33]}
{[%emt 00:00:13]} 15. Bd2 {[%clk 00:03:03]} {[%emt 00:00:05]} Ng4 {[%clk
00:02:31]} {[%emt 00:00:03]} 16. Bc3 {[%clk 00:02:55]} {[%emt 00:00:09]} Nge5
{[%clk 00:02:28]} {[%emt 00:00:06]} 17. Nxe5 {[%clk 00:02:40]} {[%emt
00:00:17]} Bxe5 {[%clk 00:02:27]} {[%emt 00:00:02]} 18. Rhe1 {[%clk 00:02:25]}
{[%emt 00:00:17]} f6 {[%clk 00:02:20]} {[%emt 00:00:10]} 19. f4 {[%clk
00:02:10]} {[%emt 00:00:16]} Bxc3 {[%clk 00:02:19]} {[%emt 00:00:04]} 20. bxc3
{[%clk 00:02:05]} {[%emt 00:00:07]} Nb6 {[%clk 00:02:16]} {[%emt 00:00:05]} 21.
c4 {[%clk 00:01:59]} {[%emt 00:00:08]} Ra5 {[%clk 00:02:15]} {[%emt 00:00:03]}
22. e5 {[%clk 00:01:50]} {[%emt 00:00:12]} dxe5 {[%clk 00:02:04]} {[%emt
00:00:13]} 23. fxe5 {[%clk 00:01:51]} {[%emt 00:00:01]} Rba8 {[%clk 00:02:01]}
{[%emt 00:00:05]} 24. exf6 {[%clk 00:01:30]} {[%emt 00:00:22]} exf6 {[%clk
00:02:02]} {[%emt 00:00:02]} 25. Qe2 {[%clk 00:01:09]} {[%emt 00:00:23]} Qf7
{[%clk 00:01:55]} {[%emt 00:00:09]} 26. Qe6 {[%clk 00:00:54]} {[%emt 00:00:16]}
Nxc4 {[%clk 00:01:53]} {[%emt 00:00:05]} 27. Qxf7+ {[%clk 00:00:46]} {[%emt
00:00:10]} Kxf7 {[%clk 00:01:54]} 28. d6 {[%clk 00:00:42]} {[%emt 00:00:06]}
Ne5 {[%clk 00:01:39]} {[%emt 00:00:17]} 29. Nc7 {[%clk 00:00:37]} {[%emt
00:00:07]} Rd8 {[%clk 00:01:34]} {[%emt 00:00:06]} 30. Red1 {[%clk 00:00:38]}
{[%emt 00:00:02]} Nc4 {[%clk 00:01:33]} {[%emt 00:00:04]} 31. d7 {[%clk
00:00:36]} {[%emt 00:00:04]} Ne3+ {[%clk 00:01:33]} {[%emt 00:00:01]} 32. Kf2
{[%clk 00:00:37]} {[%emt 00:00:01]} Nxd1+ {[%clk 00:01:34]} {[%emt 00:00:01]}
33. Rxd1 {[%clk 00:00:38]} {[%emt 00:00:01]} Rxa4 {[%clk 00:01:35]} {[%emt
00:00:02]} 34. Nb5 {[%clk 00:00:34]} {[%emt 00:00:05]} Ra2+ {[%clk 00:01:33]}
{[%emt 00:00:04]} 35. Kf3 {[%clk 00:00:35]} {[%emt 00:00:01]} Rxh2 {[%clk
00:01:23]} {[%emt 00:00:12]} 36. Rd5 {[%clk 00:00:33]} {[%emt 00:00:03]} c4
{[%clk 00:01:21]} {[%emt 00:00:04]} 37. Nd6+ {[%clk 00:00:33]} {[%emt
00:00:02]} Ke6 {[%clk 00:01:21]} {[%emt 00:00:03]} 38. Rd1 {[%clk 00:00:31]}
{[%emt 00:00:04]} Rxd7 {[%clk 00:01:21]} {[%emt 00:00:02]} 39. Re1+ {[%clk
00:00:26]} {[%emt 00:00:08]} Kxd6 {[%clk 00:01:22]} {[%emt 00:00:01]} 40. Rd1+
{[%clk 00:00:27]} Kc7 {[%clk 00:01:23]} {[%emt 00:00:03]} 41. Rxd7+ {[%clk
00:00:27]} Kxd7 {[%clk 00:01:24]} 42. Kf4 {[%clk 00:00:29]} c3 {[%clk
00:01:25]} 43. Ke3 {[%clk 00:00:29]} c2 {[%clk 00:01:27]} {[%emt 00:00:01]} 44.
Kf3 {[%clk 00:00:30]} {[%emt 00:00:01]} c1=Q {[%clk 00:01:27]} {[%emt
00:00:01]} 45. Ke4 {[%clk 00:00:31]} {[%emt 00:00:01]} Re2+ {[%clk 00:01:28]}
{[%emt 00:00:01]} 46. Kf3 {[%clk 00:00:32]} {[%emt 00:00:01]} Qe3+ {[%clk
00:01:29]} {[%emt 00:00:02]} 0-1

[Event "Biel DQA Blitzn"]
[Site "Biel/Bienne, Switzerland"]
[Date "2022.07.17"]
[Round "1.4"]
[White "Sumarriva Paulin, Laura"]
[Black "Moracchini, Margaux"]
[Result "0-1"]
[TimeControl "3 min + 2 sec"]
[WhiteElo "1886"]
[BlackElo "1825"]

1. e4 {[%clk 00:03:02]} c5 {[%clk 00:03:04]} 2. Nc3 {[%clk 00:03:03]} {[%emt
00:00:01]} d6 {[%clk 00:03:04]} {[%emt 00:00:02]} 3. g3 {[%clk 00:03:03]}
{[%emt 00:00:02]} g6 {[%clk 00:03:00]} {[%emt 00:00:05]} 4. Bg2 {[%clk
00:03:03]} {[%emt 00:00:02]} Bg7 {[%clk 00:03:00]} {[%emt 00:00:02]} 5. d3
{[%clk 00:03:03]} {[%emt 00:00:02]} e6 {[%clk 00:02:53]} {[%emt 00:00:09]} 6.
Nge2 {[%clk 00:03:03]} {[%emt 00:00:02]} Ne7 {[%clk 00:02:51]} {[%emt
00:00:04]} 7. O-O {[%clk 00:03:01]} {[%emt 00:00:03]} O-O {[%clk 00:02:50]}
{[%emt 00:00:03]} 8. Bg5 {[%clk 00:02:58]} {[%emt 00:00:05]} h6 {[%clk
00:02:45]} {[%emt 00:00:07]} 9. Be3 {[%clk 00:02:57]} {[%emt 00:00:02]} Nbc6
{[%clk 00:02:41]} {[%emt 00:00:07]} 10. Qd2 {[%clk 00:02:57]} {[%emt 00:00:02]}
Kh7 {[%clk 00:02:41]} {[%emt 00:00:02]} 11. h3 {[%clk 00:02:45]} {[%emt
00:00:13]} a6 {[%clk 00:02:37]} {[%emt 00:00:06]} 12. f4 {[%clk 00:02:26]}
{[%emt 00:00:21]} Nd4 {[%clk 00:02:31]} {[%emt 00:00:08]} 13. Nd1 {[%clk
00:02:12]} {[%emt 00:00:16]} b5 {[%clk 00:02:03]} {[%emt 00:00:31]} 14. c3
{[%clk 00:02:11]} {[%emt 00:00:03]} Nxe2+ {[%clk 00:02:02]} {[%emt 00:00:03]}
15. Qxe2 {[%clk 00:02:11]} {[%emt 00:00:01]} Bb7 {[%clk 00:01:55]} {[%emt
00:00:09]} 16. g4 {[%clk 00:02:09]} {[%emt 00:00:04]} Qc7 {[%clk 00:01:29]}
{[%emt 00:00:28]} 17. Bf2 {[%clk 00:01:37]} {[%emt 00:00:34]} f5 {[%clk
00:00:49]} {[%emt 00:00:43]} 18. Bg3 {[%clk 00:01:23]} {[%emt 00:00:16]} Rae8
{[%clk 00:00:47]} {[%emt 00:00:04]} 19. Ne3 {[%clk 00:01:20]} {[%emt 00:00:05]}
fxe4 {[%clk 00:00:43]} {[%emt 00:00:06]} 20. dxe4 {[%clk 00:01:19]} {[%emt
00:00:02]} Qb6 {[%clk 00:00:38]} {[%emt 00:00:07]} 21. Kh2 {[%clk 00:01:05]}
{[%emt 00:00:15]} d5 {[%clk 00:00:38]} {[%emt 00:00:03]} 22. exd5 {[%clk
00:00:51]} {[%emt 00:00:16]} exd5 {[%clk 00:00:39]} 23. Qd3 {[%clk 00:00:46]}
{[%emt 00:00:07]} Rd8 {[%clk 00:00:35]} {[%emt 00:00:06]} 24. f5 {[%clk
00:00:42]} {[%emt 00:00:06]} Rf6 {[%clk 00:00:35]} {[%emt 00:00:03]} 25. fxg6+
{[%clk 00:00:39]} {[%emt 00:00:04]} Nxg6 {[%clk 00:00:33]} {[%emt 00:00:05]} 26.
Nf5 {[%clk 00:00:20]} {[%emt 00:00:21]} Kh8 {[%clk 00:00:28]} {[%emt 00:00:07]}
27. Rae1 {[%clk 00:00:20]} {[%emt 00:00:02]} c4 {[%clk 00:00:25]} {[%emt
00:00:05]} 28. Qd2 {[%clk 00:00:15]} {[%emt 00:00:07]} Rdf8 {[%clk 00:00:24]}
{[%emt 00:00:03]} 29. Nxh6 {[%clk 00:00:14]} {[%emt 00:00:03]} Rxf1 30. Rxf1
{[%clk 00:00:15]} Rxf1 {[%clk 00:00:17]} 31. Bxf1 {[%clk 00:00:16]} d4 {[%clk
00:00:15]} {[%emt 00:00:05]} 32. cxd4 {[%clk 00:00:15]} {[%emt 00:00:03]} Bxd4
{[%clk 00:00:15]} {[%emt 00:00:02]} 33. Bf2 {[%clk 00:00:08]} {[%emt 00:00:08]}
Bxf2 {[%clk 00:00:15]} {[%emt 00:00:02]} 34. Bg2 {[%clk 00:00:07]} {[%emt
00:00:03]} Bg1+ {[%clk 00:00:16]} {[%emt 00:00:01]} 35. Kh1 {[%clk 00:00:08]}
Bxg2+ {[%clk 00:00:17]} {[%emt 00:00:01]} 36. Kxg2 {[%clk 00:00:09]} Be3 {[%clk
00:00:18]} {[%emt 00:00:01]} 37. Qc2 {[%clk 00:00:09]} {[%emt 00:00:03]} Nh4+
{[%clk 00:00:18]} {[%emt 00:00:02]} 38. Kg3 {[%clk 00:00:09]} {[%emt 00:00:01]}
Bxh6 {[%clk 00:00:14]} {[%emt 00:00:06]} 39. Kxh4 {[%clk 00:00:09]} {[%emt
00:00:02]} Qf6+ {[%clk 00:00:15]} {[%emt 00:00:02]} 40. Kg3 {[%clk 00:00:10]}
{[%emt 00:00:01]} Qf4+ {[%clk 00:00:16]} 41. Kg2 {[%clk 00:00:10]} {[%emt
00:00:01]} Qf6 {[%clk 00:00:11]} {[%emt 00:00:07]} 42. Qe2 {[%clk 00:00:11]}
{[%emt 00:00:02]} Qc6+ {[%clk 00:00:11]} {[%emt 00:00:01]} 43. Kg1 {[%clk
00:00:10]} {[%emt 00:00:02]} Qc5+ {[%clk 00:00:13]} 44. Kg2 {[%clk 00:00:10]}
{[%emt 00:00:03]} Qc6+ {[%clk 00:00:14]} 45. Kg1 {[%clk 00:00:10]} {[%emt
00:00:02]} Qb6+ {[%clk 00:00:12]} {[%emt 00:00:04]} 46. Kg2 {[%clk 00:00:11]}
{[%emt 00:00:01]} Qe3 {[%clk 00:00:11]} {[%emt 00:00:03]} 47. Qc2 {[%clk
00:00:10]} {[%emt 00:00:03]} Qd3 {[%clk 00:00:11]} {[%emt 00:00:03]} 48. Qf2
{[%clk 00:00:09]} {[%emt 00:00:02]} Qd5+ {[%clk 00:00:12]} 49. Kh2 {[%clk
00:00:09]} {[%emt 00:00:02]} Qe5+ {[%clk 00:00:12]} {[%emt 00:00:02]} 50. Kg2
{[%clk 00:00:10]} {[%emt 00:00:01]} Qe4+ {[%clk 00:00:13]} {[%emt 00:00:01]} 51.
Kh2 {[%clk 00:00:09]} {[%emt 00:00:02]} Bf4+ {[%clk 00:00:14]} {[%emt
00:00:01]} 52. Kg1 {[%clk 00:00:10]} {[%emt 00:00:02]} Be3 {[%clk 00:00:15]}
0-1

[ePGN "0.1;DGT LiveChess/2.2.5"]

[Event "Biel DQA Blitzn"]
[Site "Biel/Bienne, Switzerland"]
[Date "2022.07.17"]
[Round "2.1"]
[White "Cornileau, Juliette"]
[Black "Moracchini, Margaux"]
[Result "0-1"]
[TimeControl "3 min + 2 sec"]
[WhiteElo "1653"]
[BlackElo "1825"]

1. d4 {[%clk 00:03:01]} {[%emt 00:00:02]} Nf6 {[%clk 00:03:03]} {[%emt
00:00:02]} 2. c4 {[%clk 00:03:02]} {[%emt 00:00:01]} g6 {[%clk 00:03:03]}
{[%emt 00:00:02]} 3. Nc3 {[%clk 00:03:03]} {[%emt 00:00:01]} Bg7 {[%clk
00:03:04]} {[%emt 00:00:01]} 4. e4 {[%clk 00:03:04]} d6 {[%clk 00:03:05]} 5.
Be2 {[%clk 00:03:05]} {[%emt 00:00:02]} O-O {[%clk 00:02:51]} {[%emt 00:00:16]}
6. Bg5 {[%clk 00:03:05]} {[%emt 00:00:01]} h6 {[%clk 00:02:45]} {[%emt
00:00:08]} 7. Be3 {[%clk 00:02:59]} {[%emt 00:00:08]} e5 {[%clk 00:02:37]}
{[%emt 00:00:10]} 8. d5 {[%clk 00:02:53]} {[%emt 00:00:08]} a5 {[%clk
00:02:33]} {[%emt 00:00:07]} 9. Qd2 {[%clk 00:02:39]} {[%emt 00:00:17]} Kh7
{[%clk 00:02:33]} {[%emt 00:00:01]} 10. Bd1 {[%clk 00:01:29]} {[%emt 00:01:11]}
Ng4 {[%clk 00:02:27]} {[%emt 00:00:08]} 11. Bxg4 {[%clk 00:01:24]} {[%emt
00:00:07]} Bxg4 {[%clk 00:02:28]} {[%emt 00:00:01]} 12. f3 {[%clk 00:01:25]}
Bd7 {[%clk 00:02:26]} {[%emt 00:00:05]} 13. Nge2 {[%clk 00:01:25]} {[%emt
00:00:02]} Na6 {[%clk 00:02:23]} {[%emt 00:00:05]} 14. O-O {[%clk 00:01:22]}
{[%emt 00:00:05]} f5 {[%clk 00:02:22]} {[%emt 00:00:03]} 15. f4 {[%clk
00:01:16]} {[%emt 00:00:08]} Nc5 {[%clk 00:01:55]} {[%emt 00:00:28]} 16. fxe5
{[%clk 00:01:15]} {[%emt 00:00:03]} dxe5 {[%clk 00:01:54]} {[%emt 00:00:03]} 17.
Bxc5 {[%clk 00:01:14]} {[%emt 00:00:03]} Rf7 {[%clk 00:01:53]} {[%emt
00:00:03]} 18. Rad1 {[%clk 00:01:02]} {[%emt 00:00:14]} b6 {[%clk 00:01:54]}
{[%emt 00:00:01]} 19. Be3 {[%clk 00:01:02]} {[%emt 00:00:02]} f4 {[%clk
00:01:53]} {[%emt 00:00:03]} 20. Bf2 {[%clk 00:01:02]} {[%emt 00:00:01]} Qg5
{[%clk 00:01:53]} {[%emt 00:00:03]} 21. Kh1 {[%clk 00:01:00]} {[%emt 00:00:05]}
Qg4 {[%clk 00:01:45]} {[%emt 00:00:10]} 22. Ng1 {[%emt 00:00:06]} Raf8 {[%clk
00:01:30]} {[%emt 00:00:16]} 23. Nf3 {[%clk 00:00:53]} {[%emt 00:00:07]} Qh5
{[%clk 00:01:28]} {[%emt 00:00:04]} 24. d6 {[%clk 00:00:33]} {[%emt 00:00:22]}
c6 {[%clk 00:01:29]} 25. c5 {[%clk 00:00:33]} {[%emt 00:00:03]} b5 {[%clk
00:01:28]} {[%emt 00:00:03]} 26. Qd3 {[%clk 00:00:20]} {[%emt 00:00:14]} g5
{[%clk 00:01:28]} {[%emt 00:00:02]} 27. Nb1 {[%clk 00:00:16]} {[%emt 00:00:06]}
g4 {[%clk 00:01:29]} {[%emt 00:00:01]} 28. Nh4 {[%clk 00:00:15]} {[%emt
00:00:02]} g3 {[%clk 00:01:30]} {[%emt 00:00:02]} 29. hxg3 {[%clk 00:00:15]}
{[%emt 00:00:01]} fxg3 {[%clk 00:01:29]} {[%emt 00:00:04]} 30. Qxg3 {[%clk
00:00:15]} {[%emt 00:00:01]} Rxf2 {[%clk 00:01:26]} {[%emt 00:00:04]} 31. Rxf2
{[%clk 00:00:16]} {[%emt 00:00:01]} Qxd1+ {[%clk 00:01:27]} {[%emt 00:00:01]}
32. Kh2 {[%clk 00:00:15]} {[%emt 00:00:04]} Rxf2 {[%clk 00:01:27]} {[%emt
00:00:02]} 33. Qxf2 {[%clk 00:00:12]} {[%emt 00:00:05]} Qxb1 {[%clk 00:01:21]}
{[%emt 00:00:07]} 34. Qg3 {[%clk 00:00:12]} {[%emt 00:00:02]} Qxe4 {[%clk
00:01:21]} {[%emt 00:00:02]} 35. Nf3 {[%clk 00:00:07]} {[%emt 00:00:08]} Qf4
{[%clk 00:01:21]} {[%emt 00:00:01]} 36. Qxf4 {[%clk 00:00:07]} {[%emt
00:00:02]} exf4 {[%clk 00:01:22]} {[%emt 00:00:01]} 37. Kg1 {[%clk 00:00:08]}
Bxb2 {[%clk 00:01:21]} {[%emt 00:00:03]} 38. Nd4 Bxd4+ {[%clk 00:01:22]} 39.
Kf1 {[%clk 00:00:10]} Bxc5 {[%clk 00:01:23]} {[%emt 00:00:02]} 0-1